{"text_format":"3","workbook":"xlsx","n_sheets":1,"sheets":["Tabelle1"],"not_rendered":{"macros":1},"read":"whole","date_system":"1900"}

{"sheet":"Tabelle1","index":0,"n_rows":29,"n_cols":6,"rows_kept":29}
[]
[]
[null,{"$f":"RANDBETWEEN(0,20)","v":7},null,{"$f":"CountBold(B3:B29)","v":3},"=CountBold(B3:B29)"]
[null,{"$f":"RANDBETWEEN(0,20)","v":11},null,{"$f":"CountItalic(B3:B29)","v":2},"=CountItalic(B3:B29)"]
[null,8,null,{"$f":"CountBoldItalic(B3:B29)","v":1},"=CountBoldItalic(B3:B29)"]
[null,7,null,{"$f":"CountMatchingFormatReference(B3:B29,B16)","v":1},"=CountMatchingFormatReference(B3:B29;B16)"]
[null,12,null,{"$f":"CountMatchingFormatDefined(B3:B29,\"true\")","v":3},"=CountMatchingFormatDefined(B3:B29;\"true\")","Fett"]
[null,{"$f":"RANDBETWEEN(0,20)","v":12},null,{"$f":"CountMatchingFormatDefined(B3:B29,,,,,,12)","v":3},"=CountMatchingFormatDefined(B3:B29;;;;;;12)","Schriftgröße 12"]
[null,12,null,{"$f":"CountMatchingFormatDefined(B3:B29,,,,,,12,\"Arial\")","v":2},"=CountMatchingFormatDefined(B3:B29;;;;;;12;\"Arial\")","Schriftgröße 12 + Arial"]
[null,7,null,{"$f":"CountMatchingFormatDefined(B3:B29,,,\"TRUE\")","v":2},"=CountMatchingFormatDefined(B3:B29;;;\"TRUE\")","unterstichen, aber egal wie unterstrichen"]
[null,12,null,{"$f":"CountMatchingFormatReference(B3:B29,B29)","v":1},"=CountMatchingFormatReference(B3:B29;B16)","unter Verwendung einer Formatvorlage"]
[null,17,null,{"$f":"CountMatchingFormatElementsAdvanced(B3:B29,B18,,,\"true\")","v":1},"=CountMatchingFormatElementsAdvanced(B3:B29;B18;;;\"true\")","mit Referenzzelle mit besonderer Unterstreichung"]
[null,16]
[null,19]
[null,0]
[null,3]
[null,2]
[null,12]
[null,1]
[null,5]
[null,19]
[null,9]
[null,3]
[null,6]
[null,2]
[null,2]
[null,4]
[null,8]
[null,6]